bitfinex-derivatives/quotes_SOLF0:USTF0_20250520
["timestamp","ask_amount","ask_price","bid_price","bid_amount"]
[1747707670275,0.77210126,173.03,172.88,67.88]
[1747707670474,0.77210126,173.03,172.9,10.85594239]
[1747707671376,0.77210126,173.03,172.95,0.04346509]
[1747707671676,0.77210126,173.03,172.96,67.88]
[1747707671877,0.77210126,173.03,172.97,3.9055]
[1747707673580,0.77210126,173.03,172.98,67.88]
[1747707673778,0.77210126,173.03,172.99,0.04375322]
[1747707680590,0.77210126,173.03,173.0,5.7788]
[1747707681380,0.77210126,173.03,173.01,5.7785]
[1747707681581,0.77210126,173.03,172.99,0.04375322]
[1747707681790,67.84,173.09,172.99,0.04375322]
[1747707681985,5.7763,173.08,173.01,5.7783]
[1747707682185,5.7763,173.08,173.03,0.03693267]
[1747707682583,73.616,173.09,173.03,0.03693267]
[1747707682787,67.84,173.09,173.03,0.03693267]
[1747707683188,5.7763,173.08,173.03,0.03693267]
[1747707684983,67.84,173.09,173.03,0.03693267]
[1747707686394,73.6159,173.09,173.03,0.03693267]
[1747707687389,67.84,173.09,173.03,0.03693267]
[1747707688084,73.6159,173.09,173.03,0.03693267]
[1747707689893,67.84,173.09,173.03,0.03693267]
[1747707690387,5.7775,173.04,173.03,0.03693267]
[1747707690990,5.7769,173.06,173.03,0.03693267]
[1747707691898,69.8252,173.09,173.03,0.03693267]
[1747707693099,5.7775,173.04,173.03,0.03693267]
[1747707694795,67.8,173.04,172.92,67.8]
[1747707695000,1.9587,173.03,172.92,67.8]
[1747707695599,3.8665,173.03,172.92,67.8]
[1747707695799,0.03840573,172.99,172.96,0.04151818]
[1747707696005,5.7796,172.98,172.96,0.04151818]
[1747707696200,67.83840573,172.99,172.96,0.04151818]
[1747707696400,67.83840573,172.99,172.88,113.42573544]
[1747707696595,2.0556,172.98,172.88,113.42573544]
[1747707697001,73.5795,172.99,172.88,113.42573544]
[1747707697404,0.0367765,172.95,172.92,0.04135338]
[1747707699201,0.0367765,172.95,172.92,5.82275338]
[1747707700004,0.0367765,172.95,172.92,0.04135338]
[1747707701198,67.04,172.94,172.92,0.04135338]
[1747707701591,5.7818,172.92,172.84,7.6451]
[1747707701794,67.04,172.94,172.81,1.9291]
[1747707701993,1.867,172.93,172.78,5.786]
[1747707702199,1.867,172.93,172.77,67.04]
[1747707702599,0.04286118,172.87,172.83,0.04152208]
[1747707703201,67.08286118,172.87,172.83,0.04152208]
[1747707703505,67.08286118,172.87,172.74,1.86674259]
[1747707703703,1.8757,172.86,172.74,1.86674259]
[1747707704209,10.83150518,172.85,172.74,1.86674259]
[1747707704509,0.03686041,172.81,172.78,0.04057212]
[1747707704712,67.04,172.8,172.74,1.86674259]
[1747707705310,5.7859,172.79,172.74,1.86674259]
[1747707705512,5.7859,172.79,172.69,5.789]
[1747707705698,0.04286325,172.76,172.72,0.04035279]
[1747707707902,0.04286325,172.76,172.64,1.8877]
[1747707708110,2.0231,172.76,172.6,1.9938]
[1747707708300,12.85460518,172.76,172.6,1.9938]
[1747707708705,67.06,172.75,172.6,1.9938]
[1747707709010,0.03839035,172.69,172.66,0.0432844]
[1747707709209,67.06,172.68,172.66,0.0432844]
[1747707709909,67.13839035,172.69,172.66,0.0432844]
[1747707710109,0.03839035,172.69,172.66,0.0432844]
[1747707712409,67.1,172.68,172.66,0.0432844]
[1747707713911,67.1,172.68,172.54,10.83150518]
[1747707714210,67.1,172.68,172.54,14.73910518]
[1747707714411,5.7906,172.65,172.57,5.7929]
[1747707714619,67.1,172.68,172.54,14.73910518]
[1747707715018,0.0368076,172.64,172.6,0.03657794]
[1747707717318,0.0368076,172.64,172.62,5.7913]
[1747707717511,0.0368076,172.64,172.6,0.03657794]
[1747707720109,67.14,172.69,172.62,10.83150518]
[1747707720914,69.179,172.74,172.63,69.0718]
[1747707721114,0.03813198,172.7,172.67,0.04216411]
[1747707721322,0.03813198,172.7,172.69,5.7893]
[1747707721622,0.03813198,172.7,172.67,0.04216411]
[1747707722321,5.82713198,172.7,172.67,0.04216411]
[1747707723220,0.03813198,172.7,172.67,0.04216411]
[1747707723422,67.14,172.69,172.59,69.0838]
[1747707723719,72.9295,172.69,172.62,5.7913]
[1747707723926,5.5354,172.73,172.59,69.0838]
[1747707724220,67.14,172.72,172.59,69.0838]
[1747707724415,0.04415512,172.67,172.64,0.04367964]
[1747707724622,0.04415512,172.67,172.65,5.7903]
[1747707725223,0.04415512,172.67,172.66,5.7903]
[1747707725627,11.5626,172.93,172.66,5.8]
[1747707725824,1.8818,172.85,172.71,10.83150518]
[1747707726127,67.14,172.84,172.72,1.8627]
[1747707726625,0.04056963,172.8,172.76,0.04151421]
[1747707728020,5.82636963,172.8,172.76,0.04151421]
[1747707728321,0.04056963,172.8,172.76,0.04151421]
[1747707731517,0.04056963,172.8,172.76,5.82841421]
[1747707731718,0.04056963,172.8,172.76,0.04151421]
[1747707733325,68.62,172.79,172.76,0.04151421]
[1747707735025,5.7866,172.77,172.76,0.04151421]
[1747707735219,68.62,172.79,172.68,7.7712]
[1747707735524,5.7872,172.76,172.68,7.7714]
[1747707735831,5.7872,172.76,172.68,1.9819]
[1747707736125,68.62,172.79,172.71,0.04134025]
[1747707736425,0.0443637,172.74,172.71,0.04134025]
[1747707736929,5.8321637,172.74,172.71,0.04134025]
[1747707737138,0.0443637,172.74,172.71,0.04134025]
[1747707737523,68.6643637,172.74,172.71,0.04134025]
[1747707738228,5.7882,172.72,172.71,0.04134025]
[1747707740136,68.6643637,172.74,172.71,0.04134025]
[1747707740743,5.788,172.73,172.71,0.04134025]
[1747707741335,5.7882,172.72,172.71,0.04134025]
[1747707742736,5.7892,172.69,172.63,5.791]
[1747707743435,5.7897,172.68,172.62,70.4899]
[1747707743638,0.04338148,172.67,172.63,0.04012679]
[1747707743830,0.04338148,172.67,172.63,0.04096935]
[1747707745339,5.7908,172.65,172.63,0.04096935]
[1747707746035,5.7909,172.64,172.63,0.04096935]
[1747707748544,74.4309,172.64,172.63,0.04096935]
[1747707749436,5.7921,172.61,172.56,2.0396]
[1747707750244,5.7925,172.6,172.56,2.0396]
[1747707750444,5.83266036,172.6,172.56,2.08222116]
[1747707750946,0.04016036,172.6,172.56,0.04262116]
[1747707751146,68.64,172.59,172.56,0.04262116]
[1747707751746,68.64,172.59,172.56,2.116e-05]
[1747707751939,79.5179231,172.59,172.49,1.86674259]
[1747707752252,10.8779231,172.54,172.47,6.485e-05]
[1747707752446,5.7963,172.48,172.47,6.485e-05]
[1747707752748,68.66,172.48,172.42,1.93186154]
[1747707752949,5.7975,172.45,172.43,0.0429941]
[1747707753249,0.03717641,172.47,172.43,0.0429941]
[1747707753849,5.7976,172.44,172.43,0.0429941]
[1747707754246,0.03717641,172.47,172.43,0.0429941]
[1747707755249,68.68,172.53,172.43,0.0429941]
[1747707755447,68.68,172.53,172.48,5.7963]
[1747707755644,68.68,172.57,172.46,68.68]
[1747707755849,74.4733,172.57,172.5,5.7953]
[1747707756056,0.0395014,172.55,172.52,0.03924824]
[1747707756253,68.68,172.59,172.52,0.03924824]
[1747707756459,68.68,172.59,172.51,68.68]
[1747707756656,68.68,172.63,172.51,68.68]
[1747707757464,0.04072162,172.59,172.55,0.0441277]
[1747707758261,5.7936,172.56,172.55,0.0441277]
[1747707758562,70.366,172.58,172.47,1.9794]
[1747707759471,0.03731634,172.54,172.51,0.04375603]
[1747707760168,5.83161634,172.54,172.51,0.04375603]
[1747707760369,0.03731634,172.54,172.51,0.04375603]
[1747707760966,5.83191634,172.54,172.51,0.04375603]
[1747707761262,0.03731634,172.54,172.51,0.04375603]
[1747707761664,5.7949,172.52,172.51,0.04375603]
[1747707762362,0.03731634,172.54,172.51,0.04375603]
[1747707762764,5.7949,172.53,172.51,0.04375603]
[1747707763066,0.03731634,172.54,172.51,0.04375603]
[1747707763266,5.7949,172.53,172.51,0.04375603]
[1747707763564,0.03731634,172.54,172.51,0.04375603]
[1747707764268,5.7949,172.52,172.51,0.04375603]
[1747707764765,5.7949,172.52,172.51,5.603e-05]
[1747707764967,5.797,172.46,172.41,2.0225]
[1747707765867,0.03745181,172.45,172.42,0.03903589]
[1747707766261,17.67707691,172.54,172.44,5.7976]
[1747707766467,5.7956,172.51,172.43,1.9803]
[1747707766767,68.38,172.53,172.44,68.38]
[1747707766960,68.4,172.57,172.44,68.38]
[1747707767268,0.04387475,172.52,172.49,0.04194018]
[1747707767466,0.04387475,172.52,172.49,1.93864018]
[1747707767670,19.57527691,172.62,172.49,70.33864018]
[1747707767865,68.4,172.62,172.49,70.2967]
[1747707768172,68.4,172.62,172.51,5.795]
[1747707768367,68.4,172.62,172.49,70.2967]
[1747707768554,68.4,172.62,172.54,0.03886375]
[1747707768760,0.03825205,172.57,172.54,0.03886375]
[1747707769368,5.7937,172.56,172.54,0.03886375]
[1747707770062,5.83155205,172.57,172.54,0.03886375]
[1747707770362,0.03825205,172.57,172.54,0.03886375]
[1747707771265,0.03825205,172.57,172.54,5.83316375]
[1747707771462,500.8,172.66,172.54,0.03886375]
[1747707771771,500.8,172.66,172.54,68.4]
[1747707771980,500.8,172.66,172.55,2.0446]
[1747707772272,5.7913,172.63,172.55,2.0446]
[1747707772470,0.0438867,172.61,172.57,0.04130463]
[1747707772871,0.0438867,172.61,172.57,2.09370463]
[1747707773462,5.7925,172.6,172.57,2.09370463]
[1747707773666,0.0438867,172.61,172.57,2.09370463]
[1747707774069,5.7925,172.6,172.57,2.09370463]
[1747707774272,0.0438867,172.61,172.57,0.04130463]
[1747707774468,68.4,172.67,172.6,5.7923]
[1747707774669,68.38,172.71,172.61,1.9953]
[1747707775565,0.04200677,172.68,172.64,0.04415725]
[1747707775975,5.7904,172.66,172.64,0.04415725]
[1747707776276,0.04200677,172.68,172.64,0.04415725]
[1747707777470,0.04200677,172.68,172.55,72.4379]
[1747707777671,23.47457691,172.7,172.55,72.4379]
[1747707777871,5.7916,172.62,172.55,78.2315]
[1747707778071,68.38,172.65,172.55,78.2315]
[1747707778479,0.03960199,172.62,172.58,0.04407392]
[1747707780079,5.792,172.61,172.58,0.04407392]
[1747707780382,0.03960199,172.62,172.58,0.04407392]
[1747707780682,0.03960199,172.62,172.59,5.7923]
[1747707780885,0.03960199,172.62,172.58,0.04407392]
[1747707781279,0.03960199,172.62,172.58,5.83697392]
[1747707781882,500.86,172.75,172.58,0.04407392]
[1747707782085,68.36,172.74,172.59,17.67707691]
[1747707782382,68.36,172.74,172.6,68.36]
[1747707782581,17.67707691,172.73,172.6,68.36]
[1747707782781,17.67707691,172.69,172.56,1.938]
[1747707782975,0.03660303,172.64,172.61,0.03851862]
[1747707783477,5.7916,172.62,172.61,0.03851862]
[1747707783682,0.03660303,172.64,172.61,0.03851862]
[1747707784073,5.82750303,172.64,172.61,0.03851862]
[1747707785285,0.03660303,172.64,172.61,0.03851862]
[1747707788884,68.36,172.68,172.63,5.791]
[1747707789079,67.56,172.72,172.63,5.791]
[1747707789287,67.56,172.72,172.6,68.36]
[1747707789678,0.03829322,172.68,172.65,5.7903]
[1747707790281,0.03829322,172.68,172.64,0.04071516]
[1747707791488,0.03829322,172.68,172.65,67.56]
[1747707791786,0.03829322,172.68,172.67,5.7899]
[1747707792285,0.03829322,172.68,172.65,69.4589]
[1747707792286,67.56,172.76,172.65,71.5064]
[1747707792788,67.56,172.8,172.65,71.5064]
[1747707793177,0.04001952,172.74,172.71,0.04386138]
[1747707793889,0.04001952,172.74,172.72,5.7882]
[1747707794082,0.04001952,172.74,172.71,2.01316138]
[1747707794591,0.04001952,172.74,172.71,7.80146138]
[1747707795688,0.04001952,172.74,172.71,0.04386138]
[1747707796196,5.7882,172.72,172.71,0.04386138]
[1747707798791,5.7879,172.73,172.71,0.04386138]
[1747707799594,0.04001952,172.74,172.71,0.04386138]
[1747707799892,0.04001952,172.74,172.71,67.56386138]
[1747707800696,67.52,172.82,172.71,67.56386138]
[1747707800892,67.52,172.82,172.71,67.52]
[1747707801794,0.04071231,172.78,172.75,5.82606101]
[1747707801990,0.04071231,172.78,172.75,0.03906101]
[1747707802897,0.04071231,172.78,172.75,5.82626101]
[1747707803298,0.04071231,172.78,172.75,0.03906101]
[1747707804095,0.04071231,172.78,172.75,5.82626101]
[1747707804399,0.04071231,172.78,172.75,0.03906101]
[1747707804903,5.7866,172.77,172.75,0.03906101]
[1747707805203,0.04071231,172.78,172.75,0.03906101]
[1747707805606,5.7869,172.76,172.75,0.03906101]
[1747707806702,1.9128,172.77,172.66,1.9754]
[1747707807101,1.9128,172.77,172.67,5.7896]
[1747707807505,0.03847123,172.74,172.7,0.04173451]
[1747707809307,5.82637123,172.74,172.7,5.83053451]
[1747707809604,0.03847123,172.74,172.7,0.04173451]
[1747707810110,5.7886,172.71,172.7,0.04173451]
[1747707810294,0.03847123,172.74,172.7,0.04173451]
[1747707810495,5.82617123,172.74,172.7,0.04173451]
[1747707810899,0.03847123,172.74,172.7,0.04173451]
[1747707811104,5.7882,172.73,172.7,0.04173451]
[1747707811599,5.7883,172.72,172.7,0.04173451]
[1747707812495,0.03847123,172.74,172.7,0.04173451]
[1747707812900,0.03847123,172.74,172.71,5.7883]
[1747707813302,0.03847123,172.74,172.7,0.04173451]
[1747707813606,0.03847123,172.74,172.71,5.7883]
[1747707813804,0.03847123,172.74,172.7,67.56173451]
[1747707814308,0.03847123,172.74,172.73,5.7879]
[1747707814510,67.52,172.83,172.7,67.56173451]
[1747707814711,67.52,172.83,172.7,67.52]
[1747707815207,19.58141374,172.9,172.71,17.64021374]
[1747707815410,0.03768781,172.82,172.79,0.04011639]
[1747707815605,0.04363109,172.82,172.8,5.7853]
[1747707816006,0.04363109,172.82,172.79,0.03836322]
[1747707816704,10.70430616,172.91,172.79,23.45857696]
[1747707817010,10.70430616,172.91,172.79,17.64021374]
[1747707817508,10.70430616,172.91,172.79,79.64021374]
[1747707817705,7.61816578,172.91,172.83,17.68331231]
[1747707817911,6.0753,173.01,172.84,567.88]
[1747707818111,6.0753,173.01,172.87,17.64021374]
[1747707818307,5.7791,173.0,172.93,5.7811]
[1747707818707,0.03755646,172.98,172.95,0.04186423]
[1747707819804,5.81715646,172.98,172.95,0.04186423]
[1747707820704,5.7799,172.97,172.95,0.04186423]
[1747707820905,0.03755646,172.98,172.95,0.04186423]
[1747707824308,3.9119,173.06,172.95,0.04186423]
[1747707824612,3.9119,173.06,172.92,67.5]
[1747707824915,5.7785,173.02,172.95,5.7803]
[1747707825122,5.7785,173.02,172.93,67.46]
[1747707825308,0.03067775,173.0,172.97,0.03848937]
[1747707825510,0.03067775,173.0,172.98,67.46]
[1747707826516,0.03067775,173.0,172.97,0.03848937]
[1747707826719,0.03067775,173.0,172.97,67.49848937]
[1747707829210,5.7769,173.07,172.98,2.026]
[1747707829913,12.76669947,173.11,172.98,2.026]
[1747707829914,5.7769,173.06,173.01,5.7783]
[1747707830113,1.9341,173.11,172.98,2.026]
[1747707830312,1.9341,173.11,173.03,0.03677328]
[1747707830618,5.7766,173.07,173.03,0.03677328]
[1747707830820,1.9341,173.11,173.03,0.03677328]
[1747707831121,5.7772,173.06,173.03,0.03677328]
[1747707831417,1.9341,173.11,173.03,0.03677328]
[1747707834014,5.7768,173.07,173.03,0.03677328]
[1747707834921,5.7769,173.06,173.03,0.03677328]
[1747707835820,5.7775,173.04,173.03,0.03677328]
[1747707836320,5.7773,173.05,173.03,0.03677328]
[1747707836521,70.24,173.07,173.03,0.03677328]
[1747707836917,5.7775,173.05,173.03,0.03677328]
[1747707837120,70.24,173.07,173.03,0.03677328]
[1747707838523,70.24,173.07,172.96,70.24]
[1747707838820,5.7781,173.03,172.97,5.7798]
[1747707839323,5.7776,173.04,172.97,5.7798]
[1747707839512,5.7776,173.04,172.99,0.04186686]
[1747707839719,0.03677328,173.02,172.99,0.04186686]
[1747707840523,5.81517328,173.02,172.99,0.04186686]
[1747707841326,0.03677328,173.02,172.99,0.04186686]
[1747707843328,5.81507328,173.02,172.99,0.04186686]
[1747707843525,0.03677328,173.02,172.99,0.04186686]
[1747707843723,70.27677328,173.02,172.99,0.04186686]
[1747707843923,3.9044,173.01,172.9,72.1515]
[1747707844430,3.9044,173.01,172.9,76.0222]
[1747707844730,1.9536,173.0,172.9,70.24]
[1747707844915,0.03698744,172.97,172.93,0.04112408]
[1747707845117,5.81718744,172.97,172.93,0.04112408]
[1747707845722,5.7802,172.96,172.93,0.04112408]
[1747707846027,0.03698744,172.97,172.93,0.04112408]
[1747707846821,70.27698744,172.97,172.93,0.04112408]
[1747707847029,70.27698744,172.97,172.84,70.24]
[1747707847225,70.24,172.97,172.84,70.24]
[1747707847928,0.04241712,172.92,172.89,0.03875428]
[1747707848122,5.7827,172.89,172.82,5.7846]
[1747707848317,70.24,172.9,172.82,5.7846]
[1747707848517,0.04080865,172.88,172.85,0.04208121]
[1747707848721,5.7835,172.87,172.85,0.04208121]
[1747707848925,0.04080865,172.88,172.85,0.04208121]
[1747707849227,5.784,172.85,172.78,76.0262]
[1747707849428,5.7184,172.89,172.78,70.24]
[1747707849823,5.7836,172.86,172.79,5.7858]
[1747707850323,0.03718096,172.84,172.81,0.04443687]
[1747707851531,74.04,172.96,172.81,0.04443687]
[1747707851721,5.7807,172.95,172.88,5.7828]
[1747707851923,74.04,172.96,172.84,74.04]
[1747707852332,0.03851305,172.92,172.88,0.0445297]
[1747707854234,0.03851305,172.92,172.9,5.782]
[1747707854944,0.03851305,172.92,172.89,5.7825]
[1747707855129,0.03851305,172.92,172.88,0.0445297]
[1747707856436,0.03851305,172.92,172.89,5.7825]
[1747707856637,0.03851305,172.92,172.88,0.0445297]
[1747707857929,5.7823,172.9,172.88,0.0445297]
[1747707858133,74.04,172.91,172.88,0.0445297]
[1747707858341,76.0632,172.91,172.79,74.04]
[1747707859134,1.9963,172.97,172.79,74.04]
[1747707859341,0.04177566,172.87,172.83,0.04418499]
[1747707859535,0.03862182,172.87,172.83,0.04129357]
[1747707860227,0.03862182,172.87,172.84,5.7842]
[1747707860841,0.03862182,172.87,172.83,0.04129357]
[1747707861337,0.03862182,172.87,172.85,5.7838]
[1747707862343,0.03862182,172.87,172.86,5.7836]
[1747707864836,2.182e-05,172.87,172.86,5.7836]
[1747707865042,82.4,173.09,172.99,5.7791]
[1747707865240,3.8074,173.08,172.95,82.4]
[1747707866047,0.03995102,173.03,173.0,0.0423596]
[1747707867543,5.7138,173.19,173.02,10.81525625]
[1747707867740,5.7745,173.14,173.07,5.7765]
[1747707867942,5.7138,173.19,173.03,1.9251]
[1747707868645,0.03646785,173.13,173.09,0.03733731]
[1747707869247,3.97037275,173.21,173.11,10.81525625]
[1747707869645,3.97037275,173.21,173.07,10.81525625]
[1747707869851,3.97037275,173.21,173.07,96.81525625]
[1747707870050,5.7739,173.15,173.07,86.0]
[1747707870346,0.04111435,173.13,173.09,0.04071141]
[1747707870555,5.81126467,173.13,173.09,0.03701042]
[1747707870751,0.03676467,173.13,173.09,0.03701042]
[1747707871846,5.7755,173.1,173.09,0.03701042]
[1747707872239,92.114,173.12,173.09,0.03701042]
[1747707872446,97.8892,173.12,173.09,0.03701042]
[1747707872739,92.114,173.12,173.09,0.03701042]
[1747707872942,5.7755,173.1,173.09,0.03701042]
[1747707873144,92.114,173.12,173.01,86.0]
[1747707873446,5.7776,173.04,173.01,86.0]
[1747707873950,92.114,173.12,172.99,2.0436]
[1747707874151,0.04187504,173.04,173.01,0.04338602]
[1747707874348,0.04187504,173.04,173.01,0.04106889]
[1747707874349,0.04300623,173.04,173.01,0.04106889]
[1747707875251,5.7779,173.03,173.01,0.04106889]
[1747707875754,0.04300623,173.04,173.01,0.04106889]
[1747707876061,5.7782,173.02,173.01,0.04106889]
[1747707878449,5.7779,173.03,173.01,0.04106889]
[1747707878957,5.82060623,173.04,173.01,0.04106889]
[1747707879352,0.04300623,173.04,173.01,0.04106889]
[1747707880254,5.82080623,173.04,173.01,0.04106889]
[1747707881056,0.04300623,173.04,173.01,0.04106889]
[1747707881650,5.82080623,173.04,173.01,0.04106889]
[1747707882251,0.04300623,173.04,173.01,0.04106889]
[1747707882657,5.7782,173.02,173.01,0.04106889]
[1747707883457,5.82080623,173.04,173.01,0.04106889]
[1747707884158,0.04300623,173.04,173.01,0.04106889]
[1747707885554,0.04300623,173.04,173.03,5.7779]
[1747707885753,2.034,173.12,173.03,5.7779]
[1747707885949,2.034,173.12,173.0,90.08]
[1747707886252,5.7765,173.07,173.0,90.08]
[1747707886855,0.04392698,173.05,173.02,0.04217665]
[1747707888869,5.82142698,173.05,173.02,0.04217665]
[1747707889171,0.04392698,173.05,173.02,0.04217665]
[1747707889554,5.7779,173.03,173.02,0.04217665]
[1747707890967,0.04392698,173.05,173.02,0.04217665]
[1747707891567,5.7779,173.03,173.02,0.04217665]
[1747707891966,0.04392698,173.05,173.02,0.04217665]
[1747707892268,5.7775,173.04,173.02,0.04217665]
[1747707892869,5.7779,173.03,173.02,0.04217665]
[1747707895073,5.7779,173.03,172.95,90.06]
[1747707895074,0.04392698,173.05,172.91,1.9764]
[1747707895274,104.78875625,173.07,172.91,1.9764]
[1747707895874,10.81525625,173.03,172.84,92.0299]
[1747707896072,0.03680271,172.95,172.92,0.03874487]
[1747707896268,0.03891931,172.95,172.92,0.041403]
[1747707899174,0.03891931,172.95,172.93,5.7811]
[1747707900083,0.03891931,172.95,172.94,5.7809]
[1747707900680,0.03891931,172.95,172.92,0.041403]
[1747707901082,0.03891931,172.95,172.94,5.7809]
[1747707901277,0.03891931,172.95,172.92,0.041403]
[1747707901784,0.03891931,172.95,172.84,1.9499]
[1747707901977,10.81525625,172.97,172.84,1.9499]
[1747707902177,5.782,172.91,172.86,5.7833]
[1747707902689,5.7829,172.88,172.87,0.03997307]
[1747707902977,0.04408356,172.9,172.78,1.91332373]
[1747707903282,5.7843,172.84,172.79,5.7859]
[1747707903578,86.94,172.86,172.78,1.91332373]
[1747707903783,5.7848,172.83,172.78,1.91332373]
[1747707903985,0.03929587,172.82,172.79,0.0365809]
[1747707904384,5.82439587,172.82,172.79,0.0365809]
[1747707904682,0.03929587,172.82,172.79,0.0365809]
[1747707905681,0.03929587,172.82,172.79,5.8223809]
[1747707905981,0.03929587,172.82,172.79,0.0365809]
[1747707906287,588.5159,172.92,172.79,0.0365809]
[1747707906486,588.5159,172.92,172.79,1.9118]
[1747707906787,5.7822,172.91,172.84,5.7839]
[1747707906985,588.5159,172.92,172.84,5.7839]
[1747707907184,0.04418309,172.9,172.86,0.0408777]
[1747707907780,5.7832,172.87,172.86,0.0408777]
[1747707907981,0.04418309,172.9,172.78,1.91332373]
[1747707908182,588.5159,172.92,172.78,1.91332373]
[1747707908889,0.04338576,172.87,172.83,0.03824322]
[1747707909491,5.7836,172.86,172.83,0.03824322]
[1747707909678,0.04338576,172.87,172.83,0.03824322]
[1747707909992,5.82668576,172.87,172.83,0.03824322]
[1747707910193,0.04338576,172.87,172.83,0.03824322]
[1747707910795,1.861,172.96,172.83,0.03824322]
[1747707911093,5.7812,172.93,172.86,5.7833]
[1747707911293,1.861,172.96,172.82,12.85505625]
[1747707911694,5.7821,172.91,172.85,5.7839]
[1747707911894,0.03718351,172.91,172.87,0.03698627]
[1747707913091,586.84,173.01,172.87,87.01698627]
[1747707913295,586.84,173.01,172.87,86.98]
[1747707913795,5.7799,172.97,172.92,5.7815]
[1747707914298,0.04111452,172.96,172.93,0.04020567]
[1747707918198,5.7809,172.94,172.93,0.04020567]
[1747707918700,0.04111452,172.96,172.93,0.04020567]
[1747707919294,5.82141452,172.96,172.93,0.04020567]
[1747707919491,0.04111452,172.96,172.93,0.04020567]
[1747707920501,0.04111452,172.96,172.94,5.7806]
[1747707920695,0.04111452,172.96,172.93,0.04020567]
[1747707921294,0.04111452,172.96,172.94,5.7809]
[1747707921903,0.04111452,172.96,172.93,5.82130567]
[1747707922105,0.04111452,172.96,172.93,0.04020567]
[1747707922298,5.9911,173.06,172.98,5.7792]
[1747707922299,5.778,173.03,172.98,5.7792]
[1747707922698,3.9355,173.06,172.95,1.9762]
[1747707923302,0.03985271,173.02,172.99,0.04061995]
[1747707923899,5.7789,173.0,172.99,0.04061995]
[1747707928403,5.7789,173.0,172.99,1.995e-05]
[1747707930208,5.7812,172.93,172.9,86.96]
[1747707930406,85.0,172.98,172.88,1.9842]
[1747707930601,1.8794,172.97,172.88,1.9842]
[1747707931298,1.8794,172.97,172.91,0.03866764]
[1747707931299,0.03889902,172.94,172.91,0.03866764]
[1747707932402,5.7815,172.93,172.91,0.03866764]
[1747707933910,5.7816,172.92,172.91,0.03866764]
[1747707934110,85.0,172.92,172.79,1.87299772]
[1747707934606,499.76,173.05,172.8,10.81525625]
[1747707934799,88.8871,173.04,172.88,10.81525625]
[1747707935004,88.8871,173.04,172.89,90.7715]
[1747707935200,0.04109098,172.98,172.95,0.04202764]
[1747707937808,85.02,172.97,172.95,0.04202764]
[1747707938010,85.02,172.97,172.9,1.75731313]
[1747707938411,1.9505,172.96,172.9,1.75731313]
[1747707938814,5.7832,172.87,172.85,1.87299772]
[1747707939507,5.7836,172.86,172.85,1.87299772]
[1747707940116,0.03837133,172.88,172.85,1.87299772]
[1747707940615,5.7832,172.87,172.85,1.87299772]
[1747707940916,0.03837133,172.88,172.84,0.03970292]
[1747707945712,0.03837133,172.88,172.84,5.82370292]
[1747707945917,0.03837133,172.88,172.84,0.03970292]
[1747707947514,5.7839,172.85,172.84,0.03970292]
[1747707949520,3.8282,172.87,172.74,3.9037]
[1747707949719,3.8282,172.87,172.71,199.16666397]
[1747707949720,10.81525625,172.86,172.71,199.16666397]
[1747707950025,10.81525625,172.86,172.71,119.91496397]
[1747707950521,0.04137544,172.8,172.77,0.04236241]
[1747707950717,5.7862,172.78,172.77,0.04236241]
[1747707952027,5.7859,172.79,172.77,0.04236241]
[1747707952523,5.7862,172.78,172.77,0.04236241]
[1747707953129,0.04178595,172.8,172.77,0.04236241]
[1747707954427,5.7862,172.78,172.77,0.04236241]
[1747707956624,5.7862,172.78,172.57,3.55946828]
[1747707956625,5.78,172.78,172.57,87.63172195]
[1747707956931,14.67635625,172.79,172.66,5.7902]
[1747707957122,5.7883,172.72,172.6,12.86995625]
[1747707957632,0.03686563,172.68,172.64,0.03648216]
[1747707958028,0.03686563,172.68,172.67,5.7899]
[1747707958621,84.36,172.74,172.7,5.7888]
[1747707959633,84.40247912,172.74,172.71,5.7886]
[1747707960034,84.40247912,172.74,172.7,0.03753432]
[1747707960228,0.04247912,172.74,172.7,0.03753432]
[1747707960731,0.04247912,172.74,172.73,5.7879]
[1747707961036,0.04247912,172.74,172.7,0.03753432]
[1747707961328,5.788,172.73,172.7,0.03753432]
[1747707961532,0.04247912,172.74,172.7,0.03753432]
[1747707962728,0.04247912,172.74,172.72,5.7881]